[Event "TUR-chT Superleague 2018"]
[Site "Ankara"]
[Date "2018.08.03"]
[Round "10"]
[White "Unuk, Laura"]
[Black "Badelka, Olga"]
[Result "0-1"]
[ECO "A62"]
[WhiteElo "2340"]
[BlackElo "2416"]
[Annotator "NA"]
[PlyCount "92"]
[EventDate "2018.07.25"]
[EventType "team-tourn"]
[EventCountry "TUR"]
[SourceTitle "playchess.com"]
[Source "ChessBase"]
[SourceQuality "1"]
[TimeControl "40/5400+30:1800+30"]

1. d4 {[%emt 0:00:30]} Nf6 {[%emt 0:00:30]} 2. c4 {[%emt 0:00:30]} e6 {[%emt 0:00:00]} 3. g3 {[%emt 0:00:30]} c5 {[%emt 0:01:00]} 4. d5 {[%emt 0:00:00]} exd5 {[%emt 0:00:00]} 5. cxd5 {[%emt 0:00:00]} d6 {[%emt 0:00:00]} 6. Nc3 {[%emt 0:00:30]} g6 {[%emt 0:00:30]} 7. Bg2 {[%emt 0:00:30]} Bg7 {[%emt 0:00:00]} 8. Nf3 {[%emt 0:00:30]} O-O {[%emt 0:00:00]} 9. O-O {[%emt 0:00:00]} a6 {[%emt 0:00:30]} 10. a4 {[%emt 0:03:00]} Re8 {[%emt 0:00:30]} 11. Bf4 {[%emt 0:02:30]} h6 {[%emt 0:11:30]} 12. Re1 {[%emt 0:19:30]} Nh5 {[%emt 0:07:30]} 13. Be3 {[%emt 0:07:30]} Nd7 {[%emt 0:01:30]} 14. Qc1 {[%emt 0:00:30]} Kh7 {[%emt 0:00:30]} 15. g4 {[%emt 0:08:30]} Nhf6 {[%emt 0:00:30]} 16. g5 {[%emt 0:01:30]} hxg5 {[%emt 0:01:30]} 17. Bxg5 {[%emt 0:02:30]} Qe7 {[%emt 0:11:30]} 18. Qf4 {[%emt 0:05:30]} Qf8 {[%emt 0:00:30]} 19. Qh4+ {[%emt 0:03:30]} Kg8 {[%emt 0:00:30]} 20. a5 {[%emt 0:01:30]} Nh7 {[%emt 0:04:30]} 21. Ne4 {[%emt 0:06:30]} f6 {[%emt 0:10:30]} 22. Bc1 {[%emt 0:02:30]} g5 {[%emt 0:01:30]} 23. Nfxg5 {[%emt 0:03:30]} fxg5 {[%emt 0:00:00]} 24. Nxg5 {[%emt 0:05:30]} Nxg5 {[%emt 0:00:00]} 25. Bxg5 {[%emt 0:00:30]} Ne5 {[%emt 0:02:30]} 26. Ra3 {[%emt 0:02:30]} Qf5 {[%emt 0:09:30]} 27. Rg3 {[%emt 0:08:05]} Qh7 {[%emt 0:03:30]} 28. Qa4 {[%emt 0:01:45]} Bd7 {[%emt 0:01:30]} 29. Qb3 {[%emt 0:00:04]} Rab8 {[%emt 0:12:54]} 30. h3 {[%emt 0:02:43]} Kh8 {[%emt 0:01:23]} 31. e4 {[%emt 0:04:26]} Nf7 {[%emt 0:04:01]} 32. Bd2 {[%emt 0:01:34]} Rg8 {[%emt 0:00:23]} 33. Bc3 {[%emt 0:04:29]} Bxc3 {[%emt 0:00:36]} 34. Qxc3+ {[%emt 0:00:30]} Ne5 {[%emt 0:00:30]} 35. Ree3 {[%emt 0:00:00]} Rxg3 {[%emt 0:08:56]} 36. Rxg3 {[%emt 0:00:00]} Rf8 {[%emt 0:01:01]} 37. b4 {[%emt 0:00:28]} c4 {[%emt 0:01:56]} 38. Qd4 {[%emt 0:01:18]} Qh6 {[%emt 0:01:00]} 39. Bf1 {[%emt 0:01:35]} Rg8 {[%emt 0:02:32]} 40. Rxg8+ {[%emt 0:02:57]} Kxg8 {[%emt 0:00:00]} 41. Qc3 {[%emt 0:01:36]} Qg7+ {[%emt 0:02:18]} 42. Kh1 {[%emt 0:05:30]} Nd3 {[%emt 0:03:30]} 43. Qxc4 {[%emt 0:03:30]} Nxf2+ {[%emt 0:00:30]} 44. Kh2 {[%emt 0:00:00]} Qe5+ {[%emt 0:00:30]} 45. Kg2 {[%emt 0:00:00]} Nxe4 {[%emt 0:00:30]} 46. Qd3 {[%emt 0:01:30]} Bb5 {[%emt 0:00:30]} 0-1

[Event "TUR-chT Superleague 2018"]
[Site "Ankara"]
[Date "2018.08.03"]
[Round "10"]
[White "Ozturk, Kubra"]
[Black "Savina, Anastasia"]
[Result "0-1"]
[ECO "B06"]
[WhiteElo "2330"]
[BlackElo "2334"]
[Annotator "ChessBase"]
[PlyCount "114"]
[EventDate "2018.07.25"]
[EventType "team-tourn"]
[EventCountry "TUR"]
[SourceTitle "playchess.com"]
[Source "ChessBase"]
[SourceQuality "1"]
[TimeControl "40/5400+30:1800+30"]

1. d4 {[%emt 0:00:30]} d6 {[%emt 0:00:30]} 2. Nf3 {[%emt 0:00:30]} g6 {[%emt 0:00:30]} 3. e4 {[%emt 0:00:30]} Bg7 {[%emt 0:00:00]} 4. Bc4 {[%emt 0:04:30]} Nf6 {[%emt 0:07:00]} 5. Qe2 {[%emt 0:00:30]} d5 {[%emt 0:15:30]} 6. exd5 {[%emt 0:01:30]} Nxd5 {[%emt 0:01:30]} 7. O-O {[%emt 0:01:30]} Nc6 {[%emt 0:08:30]} 8. Re1 {[%emt 0:10:30]} Bg4 {[%emt 0:08:30]} 9. c3 {[%emt 0:06:30]} O-O {[%emt 0:02:30]} 10. h3 {[%emt 0:00:30]} Bf5 {[%emt 0:01:30]} 11. Na3 {[%emt 0:10:30]} a6 {[%emt 0:12:30]} 12. Bxd5 {[%emt 0:07:30]} Qxd5 {[%emt 0:00:00]} 13. g4 {[%emt 0:02:30]} Bd7 {[%emt 0:09:00]} 14. Bf4 {[%emt 0:13:30]} b5 {[%emt 0:01:30]} 15. Nc2 {[%emt 0:02:30]} Nd8 {[%emt 0:11:31]} 16. Nb4 {[%emt 0:12:30]} Qb7 {[%emt 0:00:16]} 17. Ne5 {[%emt 0:02:30]} Ne6 {[%emt 0:07:42]} 18. Bd2 {[%emt 0:07:38]} Be8 {[%emt 0:04:17]} 19. d5 {[%emt 0:02:14]} Nd8 {[%emt 0:01:54]} 20. c4 {[%emt 0:04:18]} bxc4 {[%emt 0:01:40]} 21. Qxc4 {[%emt 0:00:30]} Bb5 {[%emt 0:02:32]} 22. Qc5 {[%emt 0:00:28]} a5 {[%emt 0:00:10]} 23. Nc2 {[%emt 0:04:45]} Be8 {[%emt 0:01:56]} 24. Bc3 {[%emt 0:01:10]} c6 {[%emt 0:00:28]} 25. dxc6 {[%emt 0:00:41]} Bxc6 {[%emt 0:00:26]} 26. Nd4 {[%emt 0:01:32]} Bd5 {[%emt 0:00:17]} 27. Qb5 {[%emt 0:00:38]} Qxb5 {[%emt 0:01:06]} 28. Nxb5 {[%emt 0:00:30]} Ne6 {[%emt 0:00:03]} 29. Nd7 {[%emt 0:00:57]} Rfd8 {[%emt 0:00:43]} 30. Nb6 {[%emt 0:00:06]} Ra6 {[%emt 0:00:27]} 31. Nxd5 {[%emt 0:00:42]} Rxd5 {[%emt 0:00:02]} 32. a4 {[%emt 0:00:36]} Bxc3 {[%emt 0:00:35]} 33. bxc3 {[%emt 0:00:07]} Rc6 {[%emt 0:00:07]} 34. Re4 {[%emt 0:00:47]} h5 {[%emt 0:00:28]} 35. Kg2 {[%emt 0:00:34]} h4 {[%emt 0:00:44]} 36. Rae1 {[%emt 0:00:30]} Kf8 {[%emt 0:00:59]} 37. R1e2 {[%emt 0:00:25]} g5 {[%emt 0:00:29]} 38. Nd4 {[%emt 0:00:28]} Nxd4 {[%emt 0:00:33]} 39. Rxd4 {[%emt 0:00:06]} Rxd4 {[%emt 0:00:44]} 40. cxd4 {[%emt 0:00:00]} f6 {[%emt 0:00:00]} 41. Rd2 {[%emt 0:11:18]} Ke8 {[%emt 0:06:21]} 42. d5 {[%emt 0:00:30]} Rb6 {[%emt 0:02:30]} 43. Re2 {[%emt 0:05:14]} Rb4 {[%emt 0:12:45]} 44. Re6 {[%emt 0:03:20]} Kd7 {[%emt 0:00:47]} 45. Ra6 {[%emt 0:00:16]} Rxa4 {[%emt 0:00:00]} 46. Kf3 {[%emt 0:00:30]} Ra2 {[%emt 0:02:00]} 47. Kg2 {[%emt 0:01:39]} a4 {[%emt 0:00:30]} 48. Kf3 {[%emt 0:00:18]} a3 {[%emt 0:00:36]} 49. Kg2 {[%emt 0:01:25]} Ra1 {[%emt 0:00:09]} 50. Kh2 {[%emt 0:00:48]} a2 {[%emt 0:02:06]} 51. Kg2 {[%emt 0:00:30]} Kc7 {[%emt 0:00:00]} 52. Kh2 {[%emt 0:00:41]} Kb7 {[%emt 0:00:09]} 53. Ra3 {[%emt 0:00:00]} Kb6 {[%emt 0:00:00]} 54. Kg2 {[%emt 0:00:26]} Kc5 {[%emt 0:01:33]} 55. Ra5+ {[%emt 0:00:01]} Kc4 {[%emt 0:00:56]} 56. Kh2 {[%emt 0:00:13]} Kb3 {[%emt 0:00:55]} 57. Rb5+ {[%emt 0:01:00]} Ka4 {[%emt 0:00:36]} 0-1

[Event "TUR-chT Superleague 2018"]
[Site "Ankara"]
[Date "2018.08.03"]
[Round "10"]
[White "Selbes, Tarik"]
[Black "Benidze, Davit"]
[Result "1/2-1/2"]
[ECO "B15"]
[WhiteElo "2330"]
[BlackElo "2488"]
[Annotator "ChessBase"]
[PlyCount "84"]
[EventDate "2018.07.25"]
[EventType "team-tourn"]
[EventCountry "TUR"]
[SourceTitle "playchess.com"]
[Source "ChessBase"]
[SourceQuality "1"]
[TimeControl "40/5400+30:1800+30"]

1. Nf3 {[%emt 0:00:30]} g6 {[%emt 0:00:30]} 2. e4 {[%emt 0:00:30]} Bg7 {[%emt 0:00:00]} 3. d4 {[%emt 0:00:30]} c6 {[%emt 0:00:00]} 4. h3 {[%emt 0:02:30]} d5 {[%emt 0:00:00]} 5. Nc3 {[%emt 0:02:30]} Nh6 {[%emt 0:00:00]} 6. Bf4 {[%emt 0:01:30]} f6 {[%emt 0:00:00]} 7. Qd2 {[%emt 0:00:30]} Nf7 {[%emt 0:00:00]} 8. e5 {[%emt 0:10:30]} O-O {[%emt 0:04:30]} 9. O-O-O {[%emt 0:11:30]} b5 {[%emt 0:09:30]} 10. Kb1 {[%emt 0:00:30]} Na6 {[%emt 0:00:30]} 11. Re1 {[%emt 0:00:30]} Nc7 {[%emt 0:03:30]} 12. Bd3 {[%emt 0:06:30]} Ne6 {[%emt 0:00:30]} 13. Bh2 {[%emt 0:01:30]} Qb6 {[%emt 0:10:30]} 14. h4 {[%emt 0:07:30]} Nxd4 {[%emt 0:32:30]} 15. h5 {[%emt 0:17:30]} Nxf3 {[%emt 0:09:30]} 16. gxf3 {[%emt 0:00:30]} Nxe5 {[%emt 0:00:30]} 17. Bxe5 {[%emt 0:00:30]} fxe5 {[%emt 0:00:30]} 18. hxg6 {[%emt 0:00:30]} h6 {[%emt 0:00:00]} 19. Rxe5 {[%emt 0:17:21]} Qc7 {[%emt 0:08:01]} 20. f4 {[%emt 0:14:23]} Qd6 {[%emt 0:08:19]} 21. Ne2 {[%emt 0:01:06]} Bd7 {[%emt 0:04:02]} 22. Reh5 {[%emt 0:01:29]} Bg4 {[%emt 0:02:27]} 23. Rxh6 {[%emt 0:00:08]} Qf6 {[%emt 0:00:33]} 24. c3 {[%emt 0:00:20]} Bxh6 {[%emt 0:01:56]} 25. Rxh6 {[%emt 0:00:30]} Bf5 {[%emt 0:00:00]} 26. Nd4 {[%emt 0:01:08]} Bxd3+ {[%emt 0:02:48]} 27. Qxd3 {[%emt 0:00:30]} c5 {[%emt 0:00:03]} 28. Qh3 {[%emt 0:00:31]} cxd4 {[%emt 0:00:35]} 29. g7 {[%emt 0:00:04]} Qf5+ {[%emt 0:02:31]} 30. Qxf5 {[%emt 0:00:30]} Rxf5 {[%emt 0:00:00]} 31. Rh8+ {[%emt 0:00:14]} Kxg7 {[%emt 0:00:12]} 32. Rxa8 {[%emt 0:00:00]} d3 {[%emt 0:00:40]} 33. Rxa7 {[%emt 0:00:00]} Kf6 {[%emt 0:00:06]} 34. Rb7 {[%emt 0:01:14]} Rxf4 {[%emt 0:00:24]} 35. Rxb5 {[%emt 0:00:47]} Rxf2 {[%emt 0:00:03]} 36. Kc1 {[%emt 0:00:00]} Ke5 {[%emt 0:01:45]} 37. Rb4 {[%emt 0:00:20]} Rc2+ {[%emt 0:00:38]} 38. Kb1 {[%emt 0:01:44]} Re2 {[%emt 0:00:43]} 39. Kc1 {[%emt 0:00:04]} Rc2+ {[%emt 0:00:53]} 40. Kb1 {[%emt 0:00:30]} Rf2 {[%emt 0:00:30]} 41. Kc1 {[%emt 0:00:37]} Rf4 {[%emt 0:05:51]} 42. a3 {[%emt 0:09:30]} Rf2 {[%emt 0:07:52]} 1/2-1/2

[Event "TUR-chT Superleague 2018"]
[Site "Ankara"]
[Date "2018.08.03"]
[Round "10"]
[White "Secer, Ata"]
[Black "Kinsiz, Onur"]
[Result "1/2-1/2"]
[ECO "C41"]
[WhiteElo "2320"]
[BlackElo "2204"]
[Annotator "NA"]
[PlyCount "60"]
[EventDate "2018.07.25"]
[EventType "team-tourn"]
[EventCountry "TUR"]
[SourceTitle "playchess.com"]
[Source "ChessBase"]
[SourceQuality "1"]
[TimeControl "40/5400+30:1800+30"]

1. e4 {[%emt 0:00:30]} d6 {[%emt 0:02:30]} 2. d4 {[%emt 0:00:30]} Nf6 {[%emt 0:00:30]} 3. Nc3 {[%emt 0:00:30]} e5 {[%emt 0:00:00]} 4. Nf3 {[%emt 0:12:30]} Nbd7 {[%emt 0:05:00]} 5. Bc4 {[%emt 0:01:30]} Be7 {[%emt 0:02:30]} 6. O-O {[%emt 0:00:30]} O-O {[%emt 0:00:30]} 7. Re1 {[%emt 0:00:30]} c6 {[%emt 0:03:30]} 8. a4 {[%emt 0:01:30]} a5 {[%emt 0:10:30]} 9. h3 {[%emt 0:07:30]} Nb6 {[%emt 0:12:30]} 10. Ba2 {[%emt 0:33:30]} Nfd7 {[%emt 0:13:30]} 11. Be3 {[%emt 0:03:30]} exd4 {[%emt 0:08:30]} 12. Bxd4 {[%emt 0:07:30]} Nc5 {[%emt 0:11:30]} 13. Bxc5 {[%emt 0:01:30]} dxc5 {[%emt 0:00:30]} 14. Qe2 {[%emt 0:00:00]} Qd6 {[%emt 0:04:30]} 15. Qe3 {[%emt 0:09:47]} Qg6 {[%emt 0:07:08]} 16. Ne2 {[%emt 0:02:53]} Nxa4 {[%emt 0:05:24]} 17. Ne5 {[%emt 0:06:07]} Qf6 {[%emt 0:03:06]} 18. Nxf7 {[%emt 0:00:24]} c4 {[%emt 0:01:06]} 19. Bxc4 {[%emt 0:03:01]} Bc5 {[%emt 0:01:30]} 20. e5 {[%emt 0:02:32]} Qh4 {[%emt 0:02:33]} 21. Qf4 {[%emt 0:00:50]} Qxf4 22. Nxf4 {[%emt 0:00:05]} Nxb2 {[%emt 0:02:23]} 23. Nh6+ {[%emt 0:03:48]} Kh8 {[%emt 0:00:30]} 24. Nf7+ {[%emt 0:00:00]} Kg8 {[%emt 0:01:04]} 25. Nh6+ {[%emt 0:00:00]} Kh8 {[%emt 0:00:08]} 26. Nf7+ {[%emt 0:00:27]} Kg8 {[%emt 0:00:00]} 27. Nh6+ {[%emt 0:00:07]} Kh8 {[%emt 0:00:16]} 28. Nf7+ {[%emt 0:00:00]} Kg8 {[%emt 0:00:12]} 29. Nh6+ {[%emt 0:00:00]} Kh8 {[%emt 0:00:20]} 30. Nf7+ {[%emt 0:00:18]} Kg8 {[%emt 0:00:14]} 1/2-1/2

[Event "TUR-chT Superleague 2018"]
[Site "Ankara"]
[Date "2018.08.03"]
[Round "10"]
[White "Sari, Yasin"]
[Black "Gulden, Egemen"]
[Result "1/2-1/2"]
[ECO "E61"]
[WhiteElo "2299"]
[BlackElo "2003"]
[Annotator "NA"]
[PlyCount "60"]
[EventDate "2018.07.25"]
[EventType "team-tourn"]
[EventCountry "TUR"]
[SourceTitle "playchess.com"]
[Source "ChessBase"]
[SourceQuality "1"]
[TimeControl "40/5400+30:1800+30"]

1. Nf3 {[%emt 0:00:30]} Nf6 {[%emt 0:00:30]} 2. c4 {[%emt 0:00:30]} g6 {[%emt 0:00:30]} 3. d4 {[%emt 0:00:30]} Bg7 {[%emt 0:00:00]} 4. e3 {[%emt 0:00:30]} d6 {[%emt 0:00:00]} 5. Be2 {[%emt 0:00:30]} O-O {[%emt 0:01:30]} 6. O-O {[%emt 0:02:30]} c6 {[%emt 0:00:30]} 7. Nc3 {[%emt 0:02:30]} Qc7 {[%emt 0:01:30]} 8. b3 {[%emt 0:12:30]} Re8 {[%emt 0:01:30]} 9. Qc2 {[%emt 0:04:30]} Nbd7 {[%emt 0:02:30]} 10. Bb2 {[%emt 0:02:30]} e5 {[%emt 0:08:30]} 11. Rfd1 {[%emt 0:03:30]} a6 {[%emt 0:04:30]} 12. Rac1 {[%emt 0:02:30]} b6 {[%emt 0:03:30]} 13. dxe5 {[%emt 0:06:30]} dxe5 {[%emt 0:01:30]} 14. Ng5 {[%emt 0:01:30]} Nc5 {[%emt 0:07:30]} 15. b4 {[%emt 0:13:30]} Nb7 {[%emt 0:07:30]} 16. c5 {[%emt 0:11:30]} b5 {[%emt 0:04:30]} 17. Nge4 {[%emt 0:07:30]} Nxe4 {[%emt 0:01:30]} 18. Nxe4 {[%emt 0:00:30]} Bf5 {[%emt 0:01:30]} 19. Bf3 {[%emt 0:01:30]} Rad8 {[%emt 0:02:30]} 20. h3 {[%emt 0:02:30]} h6 {[%emt 0:03:30]} 21. Rxd8 {[%emt 0:04:31]} Rxd8 {[%emt 0:00:30]} 22. Rd1 {[%emt 0:00:20]} Be6 {[%emt 0:05:30]} 23. Nc3 {[%emt 0:06:02]} Rxd1+ {[%emt 0:05:30]} 24. Qxd1 {[%emt 0:00:39]} f5 {[%emt 0:03:30]} 25. e4 {[%emt 0:01:32]} f4 {[%emt 0:01:30]} 26. a3 {[%emt 0:02:36]} Qd7 {[%emt 0:07:30]} 27. Qxd7 {[%emt 0:04:15]} Bxd7 {[%emt 0:00:00]} 28. Bg4 {[%emt 0:00:23]} Bxg4 {[%emt 0:01:00]} 29. hxg4 {[%emt 0:00:02]} Kf7 {[%emt 0:02:30]} 30. Ne2 {[%emt 0:00:28]} Bf6 {[%emt 0:00:30]} 1/2-1/2

[Event "TUR-chT Superleague 2018"]
[Site "Ankara"]
[Date "2018.08.03"]
[Round "10"]
[White "Yaran, Siar"]
[Black "Samani, Yamac"]
[Result "1-0"]
[ECO "B07"]
[WhiteElo "2240"]
[BlackElo "2217"]
[Annotator "NA"]
[PlyCount "135"]
[EventDate "2018.07.25"]
[EventType "team-tourn"]
[EventCountry "TUR"]
[SourceTitle "playchess.com"]
[Source "ChessBase"]
[SourceQuality "1"]
[TimeControl "40/5400+30:1800+30"]

1. e4 {[%emt 0:01:30]} d6 {[%emt 0:00:30]} 2. d4 {[%emt 0:01:30]} Nf6 {[%emt 0:00:30]} 3. f3 {[%emt 0:01:30]} g6 {[%emt 0:00:30]} 4. Be3 {[%emt 0:00:30]} Bg7 {[%emt 0:00:30]} 5. Nc3 {[%emt 0:01:30]} a6 {[%emt 0:00:30]} 6. Qd2 {[%emt 0:00:30]} b5 {[%emt 0:03:30]} 7. O-O-O {[%emt 0:03:30]} h5 {[%emt 0:08:30]} 8. e5 {[%emt 0:02:30]} b4 {[%emt 0:24:30]} 9. exf6 {[%emt 0:07:30]} bxc3 {[%emt 0:00:00]} 10. Qxc3 {[%emt 0:00:30]} Bxf6 {[%emt 0:01:00]} 11. Ne2 {[%emt 0:01:30]} O-O {[%emt 0:03:30]} 12. h4 {[%emt 0:04:30]} c5 {[%emt 0:13:30]} 13. Qa3 {[%emt 0:03:30]} cxd4 {[%emt 0:06:30]} 14. Bxd4 {[%emt 0:01:30]} Bxd4 {[%emt 0:04:30]} 15. Nxd4 {[%emt 0:00:00]} Qc7 {[%emt 0:05:30]} 16. g4 {[%emt 0:11:00]} e5 {[%emt 0:09:49]} 17. Ne2 {[%emt 0:10:30]} hxg4 {[%emt 0:00:38]} 18. fxg4 {[%emt 0:02:30]} Bxg4 {[%emt 0:02:58]} 19. h5 {[%emt 0:00:30]} Bf5 {[%emt 0:02:39]} 20. Rd2 {[%emt 0:01:30]} Qc5 {[%emt 0:05:39]} 21. Qg3 {[%emt 0:01:30]} Nd7 {[%emt 0:02:29]} 22. Qh4 {[%emt 0:00:30]} Kg7 {[%emt 0:00:38]} 23. Ng3 {[%emt 0:03:30]} Qe3 {[%emt 0:02:22]} 24. Bh3 {[%emt 0:18:30]} Qf4 {[%emt 0:00:28]} 25. hxg6 {[%emt 0:02:20]} fxg6 {[%emt 0:00:46]} 26. Nxf5+ {[%emt 0:02:01]} Rxf5 {[%emt 0:00:32]} 27. Qxf4 {[%emt 0:02:15]} exf4 {[%emt 0:00:33]} 28. Bxf5 {[%emt 0:00:30]} gxf5 {[%emt 0:00:00]} 29. Rf1 {[%emt 0:00:25]} Re8 {[%emt 0:00:57]} 30. Rxd6 {[%emt 0:00:38]} Nf6 {[%emt 0:00:22]} 31. Rxf4 {[%emt 0:00:42]} Kg6 {[%emt 0:00:26]} 32. Rxa6 {[%emt 0:01:14]} Kg5 {[%emt 0:00:05]} 33. Rxf6 {[%emt 0:06:57]} Kxf6 {[%emt 0:00:37]} 34. b4 {[%emt 0:01:56]} Kg5 {[%emt 0:00:04]} 35. Rf1 {[%emt 0:00:21]} Re4 {[%emt 0:00:19]} 36. a3 {[%emt 0:01:44]} f4 {[%emt 0:00:11]} 37. Kb2 {[%emt 0:00:00]} Kg4 {[%emt 0:00:46]} 38. Kb3 {[%emt 0:00:14]} Kg3 {[%emt 0:00:12]} 39. Rg1+ {[%emt 0:02:41]} Kf2 {[%emt 0:00:35]} 40. Rg4 {[%emt 0:00:00]} Ke3 {[%emt 0:00:00]} 41. b5 {[%emt 0:05:32]} f3 {[%emt 0:03:55]} 42. Rg3 {[%emt 0:00:30]} Ke2 {[%emt 0:16:30]} 43. a4 {[%emt 0:03:30]} f2 {[%emt 0:00:56]} 44. Rg2 {[%emt 0:00:30]} Rg4 {[%emt 0:04:24]} 45. Rxf2+ {[%emt 0:01:30]} Kxf2 {[%emt 0:00:30]} 46. a5 {[%emt 0:00:00]} Rg1 {[%emt 0:08:18]} 47. b6 {[%emt 0:04:00]} Ke3 {[%emt 0:01:14]} 48. Kc4 {[%emt 0:00:30]} Rg4+ {[%emt 0:00:04]} 49. Kc3 {[%emt 0:05:30]} Rg5 {[%emt 0:00:32]} 50. a6 {[%emt 0:03:47]} Rc5+ {[%emt 0:00:17]} 51. Kb4 {[%emt 0:01:13]} Rxc2 {[%emt 0:00:10]} 52. a7 {[%emt 0:00:00]} Kd4 {[%emt 0:00:59]} 53. a8=Q {[%emt 0:01:19]} Rb2+ {[%emt 0:00:30]} 54. Ka3 {[%emt 0:00:30]} Rxb6 {[%emt 0:00:00]} 55. Qc8 {[%emt 0:00:00]} Kd5 {[%emt 0:00:14]} 56. Ka4 {[%emt 0:00:08]} Rc6 {[%emt 0:01:04]} 57. Qf5+ {[%emt 0:00:22]} Kd4 {[%emt 0:00:48]} 58. Kb5 {[%emt 0:00:30]} Rc3 {[%emt 0:00:10]} 59. Qf4+ {[%emt 0:00:07]} Kd3 {[%emt 0:00:16]} 60. Kb4 {[%emt 0:00:43]} Rc2 {[%emt 0:00:20]} 61. Qf3+ {[%emt 0:00:00]} Kd2 {[%emt 0:00:34]} 62. Kb3 {[%emt 0:00:08]} Rc1 {[%emt 0:00:16]} 63. Qf4+ {[%emt 0:01:58]} Kd1 {[%emt 0:00:08]} 64. Qf2 {[%emt 0:00:40]} Rc8 {[%emt 0:01:16]} 65. Qd4+ {[%emt 0:03:30]} Ke1 {[%emt 0:01:25]} 66. Qe5+ {[%emt 0:00:06]} Kd2 {[%emt 0:00:20]} 67. Qd5+ {[%emt 0:00:30]} Kc1 {[%emt 0:00:00]} 68. Qg5+ {[%emt 0:00:00]} 1-0

[Event "TUR-chT Superleague 2018"]
[Site "Ankara"]
[Date "2018.08.03"]
[Round "10"]
[White "Kamer, Kayra"]
[Black "Shevchenko, Kirill"]
[Result "0-1"]
[ECO "B87"]
[WhiteElo "2208"]
[BlackElo "2554"]
[Annotator "ChessBase"]
[PlyCount "90"]
[EventDate "2018.07.25"]
[EventType "team-tourn"]
[EventCountry "TUR"]
[SourceTitle "playchess.com"]
[Source "ChessBase"]
[SourceQuality "1"]
[TimeControl "40/5400+30:1800+30"]

1. e4 {[%emt 0:00:30]} c5 {[%emt 0:00:30]} 2. Nf3 {[%emt 0:00:30]} d6 {[%emt 0:00:30]} 3. d4 {[%emt 0:00:30]} cxd4 {[%emt 0:00:30]} 4. Nxd4 {[%emt 0:00:30]} Nf6 {[%emt 0:00:30]} 5. Nc3 {[%emt 0:00:30]} a6 {[%emt 0:00:30]} 6. Bc4 {[%emt 0:00:00]} b5 {[%emt 0:00:00]} 7. Bb3 {[%emt 0:00:00]} e6 {[%emt 0:00:00]} 8. O-O {[%emt 0:00:00]} Be7 {[%emt 0:00:00]} 9. f4 {[%emt 0:00:00]} O-O {[%emt 0:00:00]} 10. Qe2 {[%emt 0:00:30]} b4 {[%emt 0:09:30]} 11. Nd1 {[%emt 0:01:30]} Bb7 {[%emt 0:02:30]} 12. Nf2 {[%emt 0:00:30]} Nbd7 {[%emt 0:02:30]} 13. c4 {[%emt 0:02:30]} bxc3 {[%emt 0:17:30]} 14. bxc3 {[%emt 0:00:30]} Qc7 {[%emt 0:01:30]} 15. Bd2 {[%emt 0:00:30]} Nc5 {[%emt 0:12:30]} 16. Bc2 {[%emt 0:01:30]} d5 {[%emt 0:01:30]} 17. e5 {[%emt 0:00:30]} Nfe4 {[%emt 0:00:00]} 18. Nxe4 {[%emt 0:00:30]} Nxe4 {[%emt 0:00:00]} 19. Bxe4 {[%emt 0:01:30]} dxe4 {[%emt 0:00:30]} 20. c4 {[%emt 0:00:30]} Rfd8 {[%emt 0:14:30]} 21. Be3 {[%emt 0:00:00]} Rd7 {[%emt 0:01:30]} 22. Rad1 {[%emt 0:13:00]} Rad8 {[%emt 0:02:30]} 23. Nb3 {[%emt 0:14:30]} Rxd1 {[%emt 0:09:30]} 24. Rxd1 {[%emt 0:00:00]} Rxd1+ {[%emt 0:01:30]} 25. Qxd1 {[%emt 0:00:00]} Qxc4 {[%emt 0:00:30]} 26. Qd7 {[%emt 0:00:00]} Qe2 {[%emt 0:01:30]} 27. Qd2 {[%emt 0:02:00]} Qxd2 {[%emt 0:01:30]} 28. Bxd2 {[%emt 0:05:30]} Bd5 {[%emt 0:02:20]} 29. g4 {[%emt 0:00:30]} Kf8 {[%emt 0:05:42]} 30. Kf2 {[%emt 0:00:30]} Ke8 {[%emt 0:00:43]} 31. Ke3 {[%emt 0:00:30]} Kd7 {[%emt 0:00:11]} 32. Ba5 {[%emt 0:02:30]} Ba3 {[%emt 0:02:01]} 33. h4 {[%emt 0:02:30]} Kc6 {[%emt 0:01:43]} 34. Nd4+ {[%emt 0:06:30]} Kc5 {[%emt 0:01:17]} 35. Ne2 {[%emt 0:00:00]} Kb5 {[%emt 0:04:44]} 36. Bc3 {[%emt 0:00:00]} Bxa2 {[%emt 0:01:20]} 37. Kxe4 {[%emt 0:00:30]} Bd5+ {[%emt 0:02:52]} 38. Ke3 {[%emt 0:00:30]} Kc4 {[%emt 0:00:00]} 39. Ba1 {[%emt 0:00:30]} Bc5+ {[%emt 0:00:22]} 40. Nd4 {[%emt 0:00:00]} g6 {[%emt 0:00:00]} 41. h5 {[%emt 0:01:00]} a5 {[%emt 0:01:45]} 42. h6 {[%emt 0:01:30]} a4 {[%emt 0:00:30]} 43. Bb2 {[%emt 0:00:30]} a3 {[%emt 0:00:30]} 44. Ba1 {[%emt 0:00:00]} Bb6 {[%emt 0:00:00]} 45. g5 {[%emt 0:00:00]} Bc5 {[%emt 0:00:00]} 0-1

[Event "TUR-chT Superleague 2018"]
[Site "Ankara"]
[Date "2018.08.03"]
[Round "10"]
[White "Isik, Alparslan"]
[Black "Gurel, Ediz"]
[Result "1-0"]
[ECO "E06"]
[WhiteElo "2187"]
[BlackElo "1792"]
[Annotator "NA"]
[PlyCount "85"]
[EventDate "2018.07.25"]
[EventType "team-tourn"]
[EventCountry "TUR"]
[SourceTitle "playchess.com"]
[Source "ChessBase"]
[SourceQuality "1"]
[TimeControl "40/5400+30:1800+30"]

1. d4 {[%emt 0:00:00]} Nf6 {[%emt 0:00:30]} 2. c4 {[%emt 0:00:00]} e6 {[%emt 0:00:00]} 3. Nf3 {[%emt 0:00:30]} d5 {[%emt 0:00:00]} 4. g3 {[%emt 0:00:30]} Be7 {[%emt 0:01:30]} 5. Bg2 {[%emt 0:00:00]} O-O {[%emt 0:00:30]} 6. Qc2 {[%emt 0:01:00]} c6 {[%emt 0:01:30]} 7. O-O {[%emt 0:00:30]} a6 {[%emt 0:00:30]} 8. Nbd2 {[%emt 0:00:30]} dxc4 {[%emt 0:01:30]} 9. Nxc4 {[%emt 0:00:30]} b5 {[%emt 0:00:00]} 10. Nce5 {[%emt 0:00:30]} Bb7 {[%emt 0:00:00]} 11. Bd2 {[%emt 0:03:30]} Nfd7 {[%emt 0:03:30]} 12. Rfd1 {[%emt 0:06:30]} Qb6 {[%emt 0:05:30]} 13. Be3 {[%emt 0:00:30]} Qc7 {[%emt 0:07:30]} 14. Rac1 {[%emt 0:00:30]} Rc8 {[%emt 0:01:30]} 15. Nd3 {[%emt 0:03:30]} a5 {[%emt 0:04:30]} 16. Bf4 {[%emt 0:00:30]} Bd6 {[%emt 0:04:30]} 17. Bxd6 {[%emt 0:00:30]} Qxd6 {[%emt 0:00:30]} 18. Nc5 {[%emt 0:00:30]} Nxc5 {[%emt 0:03:30]} 19. dxc5 {[%emt 0:00:30]} Qe7 {[%emt 0:00:30]} 20. Rd6 {[%emt 0:01:30]} Na6 {[%emt 0:08:30]} 21. Ne5 {[%emt 0:03:30]} Nb4 {[%emt 0:00:30]} 22. Qd2 {[%emt 0:00:30]} Rc7 {[%emt 0:07:30]} 23. Rd1 {[%emt 0:03:30]} Re8 {[%emt 0:03:30]} 24. a3 {[%emt 0:02:30]} Nd5 {[%emt 0:02:30]} 25. e4 {[%emt 0:00:30]} Nf6 {[%emt 0:00:00]} 26. Qxa5 {[%emt 0:00:30]} h6 {[%emt 0:04:00]} 27. Qd2 {[%emt 0:03:30]} Ba8 {[%emt 0:07:30]} 28. Qf4 {[%emt 0:06:30]} Rec8 {[%emt 0:03:30]} 29. h4 {[%emt 0:00:30]} Rf8 {[%emt 0:03:30]} 30. R1d3 {[%emt 0:02:30]} Rcc8 {[%emt 0:03:30]} 31. Nd7 {[%emt 0:01:30]} Nxd7 {[%emt 0:02:30]} 32. Rxd7 {[%emt 0:00:30]} Qe8 {[%emt 0:02:06]} 33. Qd6 {[%emt 0:00:30]} Rb8 {[%emt 0:01:24]} 34. e5 {[%emt 0:00:30]} Rc8 {[%emt 0:01:09]} 35. h5 {[%emt 0:02:30]} Rb8 {[%emt 0:01:09]} 36. Bxc6 {[%emt 0:01:30]} Bxc6 {[%emt 0:00:38]} 37. Qxc6 {[%emt 0:00:30]} b4 {[%emt 0:00:00]} 38. a4 {[%emt 0:00:00]} Ra8 {[%emt 0:00:23]} 39. b3 {[%emt 0:00:00]} Qb8 {[%emt 0:00:12]} 40. Qd6 {[%emt 0:00:00]} Qc8 {[%emt 0:00:00]} 41. Rd4 {[%emt 0:01:00]} Ra6 {[%emt 0:00:59]} 42. Qe7 {[%emt 0:00:30]} Ra8 {[%emt 0:00:30]} 43. Rf4 {[%emt 0:00:30]} 1-0